[Event "Titled Tuesday Blitz August 23 Late 2022"]
[White "Diaz Perez, Michel Alejandro"]
[Black "Moroni, Luca Jr"]
[WhiteFideId "3517179"]
[BlackFideId "865834"]
[WhiteElo "2313"]
[BlackElo "2573"]
[Result "0-1"]
[Round "02"]
[TimeControl "180+1"]
[Date "2022.08.23"]
[WhiteClock "0:00:14"]
[BlackClock "0:00:07"]

1. d4 {[%clk 0:03:00]}  g6 {[%clk 0:03:00]} 2. Nf3 {[%clk 0:02:57]}  Bg7 {[%clk 0:03:00]} 3. c4 {[%clk 0:02:55]}  d6 {[%clk 0:03:01]} 4. Nc3 {[%clk 0:02:54]}  Nc6 {[%clk 0:03:01]} 5. g3 {[%clk 0:02:53]}  Bd7 {[%clk 0:03:01]} 6. Bg2 {[%clk 0:02:53]}  Qc8 {[%clk 0:03:01]} 7. h4 {[%clk 0:02:41]}  Nf6 {[%clk 0:02:55]} 8. Bg5 {[%clk 0:02:40]}  h6 {[%clk 0:02:54]} 9. Bf4 {[%clk 0:02:39]}  Ng4 {[%clk 0:02:51]} 10. Qd2 {[%clk 0:02:34]}  a5 {[%clk 0:02:42]} 11. e4 {[%clk 0:02:02]}  Nxd4 {[%clk 0:02:13]} 12. Nxd4 {[%clk 0:02:01]}  e5 {[%clk 0:02:08]} 13. Ndb5 {[%clk 0:01:41]}  exf4 {[%clk 0:02:07]} 14. gxf4 {[%clk 0:01:37]}  O-O {[%clk 0:02:01]} 15. h5 {[%clk 0:01:37]}  Qd8 {[%clk 0:01:41]} 16. hxg6 {[%clk 0:01:34]}  fxg6 {[%clk 0:01:41]} 17. f5 {[%clk 0:01:23]}  gxf5 {[%clk 0:01:36]} 18. O-O-O {[%clk 0:01:20]}  Ne5 {[%clk 0:01:25]} 19. exf5 {[%clk 0:01:17]}  Bxf5 {[%clk 0:01:22]} 20. Bd5+ {[%clk 0:01:17]}  Kh7 {[%clk 0:01:20]} 21. Be4 {[%clk 0:00:42]}  Qd7 {[%clk 0:01:05]} 22. Rdg1 {[%clk 0:00:41]}  Rae8 {[%clk 0:00:46]} 23. f4 {[%clk 0:00:33]}  Nxc4 {[%clk 0:00:32]} 24. Qd3 {[%clk 0:00:29]}  Rxe4 {[%clk 0:00:25]} 25. Nxe4 {[%clk 0:00:29]}  Bxb2+ {[%clk 0:00:18]} 26. Kb1 {[%clk 0:00:27]}  Qxb5 {[%clk 0:00:17]} 27. Ng5+ {[%clk 0:00:26]}  Kh8 {[%clk 0:00:08]} 28. Rxh6+ {[%clk 0:00:26]}  Kg7 {[%clk 0:00:09]} 29. Ne6+ {[%clk 0:00:25]}  Kxh6 {[%clk 0:00:08]} 30. Rh1+ {[%clk 0:00:19]}  Kg6 {[%clk 0:00:08]} 31. Rg1+ {[%clk 0:00:14]}  Kf6 {[%clk 0:00:07]} 0-1


[Site "https://www.chess.com"]

[Event "Titled Tuesday Blitz August 23 Late 2022"]
[White "Howell, David W L"]
[Black "Hjartarson, Johann"]
[WhiteFideId "410608"]
[BlackFideId "2300044"]
[WhiteElo "2559"]
[BlackElo "2458"]
[Result "1-0"]
[Round "02"]
[TimeControl "180+1"]
[Date "2022.08.23"]
[WhiteClock "0:00:18"]
[BlackClock "0:00:09"]

1. e4 {[%clk 0:03:00]}  g6 {[%clk 0:02:57]} 2. Nc3 {[%clk 0:02:55]}  Bg7 {[%clk 0:02:56]} 3. f4 {[%clk 0:02:56]}  c5 {[%clk 0:02:55]} 4. Nf3 {[%clk 0:02:54]}  Nc6 {[%clk 0:02:55]} 5. a3 {[%clk 0:02:54]}  e6 {[%clk 0:02:53]} 6. b4 {[%clk 0:02:54]}  b6 {[%clk 0:02:45]} 7. bxc5 {[%clk 0:02:50]}  bxc5 {[%clk 0:02:45]} 8. e5 {[%clk 0:02:50]}  d6 {[%clk 0:02:33]} 9. Bb5 {[%clk 0:02:42]}  Ne7 {[%clk 0:02:32]} 10. Ne4 {[%clk 0:02:39]}  dxe5 {[%clk 0:02:30]} 11. fxe5 {[%clk 0:01:56]}  O-O {[%clk 0:02:28]} 12. Bxc6 {[%clk 0:01:40]}  Nxc6 {[%clk 0:02:26]} 13. Bb2 {[%clk 0:01:40]}  Rb8 {[%clk 0:02:20]} 14. Bc3 {[%clk 0:01:38]}  Qd5 {[%clk 0:02:08]} 15. Nf6+ {[%clk 0:01:30]}  Bxf6 {[%clk 0:02:06]} 16. exf6 {[%clk 0:01:31]}  e5 {[%clk 0:01:52]} 17. d3 {[%clk 0:01:11]}  Nd4 {[%clk 0:01:10]} 18. O-O {[%clk 0:01:04]}  h6 {[%clk 0:00:58]} 19. Qd2 {[%clk 0:01:01]}  Kh7 {[%clk 0:00:58]} 20. Rae1 {[%clk 0:00:59]}  Re8 {[%clk 0:00:49]} 21. Ng5+ {[%clk 0:00:47]}  Kg8 {[%clk 0:00:30]} 22. Ne4 {[%clk 0:00:38]}  Kh7 {[%clk 0:00:29]} 23. Ng5+ {[%clk 0:00:38]}  Kg8 {[%clk 0:00:28]} 24. Ne4 {[%clk 0:00:38]}  Kh7 {[%clk 0:00:28]} 25. Re3 {[%clk 0:00:28]}  Rb6 {[%clk 0:00:22]} 26. Bxd4 {[%clk 0:00:22]}  cxd4 {[%clk 0:00:16]} 27. Rg3 {[%clk 0:00:21]}  Bb7 {[%clk 0:00:13]} 28. Rff3 {[%clk 0:00:19]}  Qa2 {[%clk 0:00:09]} 29. Qxh6+ {[%clk 0:00:18]} 1-0


[Site "https://www.chess.com"]

[Event "Titled Tuesday Blitz August 23 Late 2022"]
[White "Jaracz, Pawel"]
[Black "Carlsen, Magnus"]
[WhiteFideId "1102222"]
[BlackFideId "1503014"]
[WhiteElo "2459"]
[BlackElo "2830"]
[Result "0-1"]
[Round "02"]
[TimeControl "180+1"]
[Date "2022.08.23"]
[WhiteClock "0:00:04"]
[BlackClock "0:00:20"]

1. e4 {[%clk 0:02:58]}  g6 {[%clk 0:02:54]} 2. d4 {[%clk 0:02:57]}  d6 {[%clk 0:02:53]} 3. Nc3 {[%clk 0:02:57]}  c6 {[%clk 0:02:48]} 4. h3 {[%clk 0:02:56]}  Bg7 {[%clk 0:02:47]} 5. Nf3 {[%clk 0:02:56]}  Nf6 {[%clk 0:02:47]} 6. Bg5 {[%clk 0:02:56]}  O-O {[%clk 0:02:35]} 7. Qd2 {[%clk 0:02:55]}  Qa5 {[%clk 0:02:30]} 8. Bd3 {[%clk 0:02:50]}  e5 {[%clk 0:02:23]} 9. O-O-O {[%clk 0:02:41]}  Nbd7 {[%clk 0:02:04]} 10. Kb1 {[%clk 0:02:26]}  exd4 {[%clk 0:02:02]} 11. Nxd4 {[%clk 0:02:26]}  Re8 {[%clk 0:02:02]} 12. Bh6 {[%clk 0:02:22]}  Bh8 {[%clk 0:01:54]} 13. f3 {[%clk 0:02:07]}  Ne5 {[%clk 0:01:50]} 14. h4 {[%clk 0:02:02]}  b5 {[%clk 0:01:50]} 15. h5 {[%clk 0:02:00]}  b4 {[%clk 0:01:50]} 16. Nce2 {[%clk 0:02:00]}  c5 {[%clk 0:01:50]} 17. Nb3 {[%clk 0:01:59]}  Qb6 {[%clk 0:01:43]} 18. hxg6 {[%clk 0:01:57]}  fxg6 {[%clk 0:01:43]} 19. Be3 {[%clk 0:01:21]}  a5 {[%clk 0:01:33]} 20. Nf4 {[%clk 0:01:10]}  a4 {[%clk 0:01:25]} 21. Nc1 {[%clk 0:01:10]}  b3 {[%clk 0:01:25]} 22. cxb3 {[%clk 0:01:09]}  axb3 {[%clk 0:01:25]} 23. a3 {[%clk 0:01:09]}  d5 {[%clk 0:01:15]} 24. exd5 {[%clk 0:01:03]}  Nxd3 {[%clk 0:01:10]} 25. Ncxd3 {[%clk 0:01:01]}  Qb5 {[%clk 0:01:09]} 26. Bxc5 {[%clk 0:00:52]}  Ra4 {[%clk 0:00:51]} 27. Bb4 {[%clk 0:00:39]}  Bf5 {[%clk 0:00:48]} 28. g4 {[%clk 0:00:37]}  Bxd3+ {[%clk 0:00:48]} 29. Qxd3 {[%clk 0:00:37]}  Rxb4 {[%clk 0:00:48]} 30. axb4 {[%clk 0:00:36]}  Qa4 {[%clk 0:00:48]} 31. Ne6 {[%clk 0:00:19]}  Qa2+ {[%clk 0:00:41]} 32. Kc1 {[%clk 0:00:19]}  Ne4 {[%clk 0:00:35]} 33. Qb1 {[%clk 0:00:15]}  Rc8+ {[%clk 0:00:32]} 34. Nc5 {[%clk 0:00:14]}  Nxc5 {[%clk 0:00:33]} 35. Qxa2 {[%clk 0:00:12]}  Na6+ {[%clk 0:00:21]} 36. Kd2 {[%clk 0:00:12]}  bxa2 {[%clk 0:00:21]} 37. Rc1 {[%clk 0:00:12]}  Rxc1 {[%clk 0:00:20]} 38. Rxc1 {[%clk 0:00:12]}  Bxb2 {[%clk 0:00:20]} 39. Rd1 {[%clk 0:00:04]}  Nxb4 {[%clk 0:00:20]} 40. d6 {[%clk 0:00:04]}  a1=Q {[%clk 0:00:20]} 41. Rxa1 {[%clk 0:00:03]}  Bxa1 {[%clk 0:00:21]} 42. g5 {[%clk 0:00:04]}  Kf7 {[%clk 0:00:20]} 0-1


[Site "https://www.chess.com"]

[Event "Titled Tuesday Blitz August 23 Late 2022"]
[White "Korchmar, Vasiliy"]
[Black "Lenderman, Aleksandr"]
[WhiteFideId "24131750"]
[BlackFideId "2021285"]
[WhiteElo "2370"]
[BlackElo "2607"]
[Result "1-0"]
[Round "02"]
[TimeControl "180+1"]
[Date "2022.08.23"]
[WhiteClock "0:00:10"]
[BlackClock "0:00:02"]

1. e4 {[%clk 0:03:00]}  e6 {[%clk 0:02:58]} 2. d4 {[%clk 0:03:00]}  d5 {[%clk 0:02:58]} 3. e5 {[%clk 0:03:01]}  c5 {[%clk 0:02:58]} 4. c3 {[%clk 0:03:02]}  Ne7 {[%clk 0:02:55]} 5. Na3 {[%clk 0:03:00]}  Nec6 {[%clk 0:02:48]} 6. Nc2 {[%clk 0:02:59]}  b6 {[%clk 0:02:48]} 7. Nf3 {[%clk 0:02:57]}  Be7 {[%clk 0:02:47]} 8. h4 {[%clk 0:02:44]}  a5 {[%clk 0:02:38]} 9. h5 {[%clk 0:02:40]}  h6 {[%clk 0:02:38]} 10. Rh3 {[%clk 0:02:28]}  a4 {[%clk 0:02:38]} 11. Rg3 {[%clk 0:02:27]}  Bf8 {[%clk 0:02:37]} 12. Bb5 {[%clk 0:02:23]}  Ra5 {[%clk 0:02:32]} 13. Qe2 {[%clk 0:02:09]}  Ba6 {[%clk 0:02:31]} 14. Bxa6 {[%clk 0:02:08]}  Nxa6 {[%clk 0:02:30]} 15. a3 {[%clk 0:02:02]}  Nc7 {[%clk 0:02:28]} 16. Kf1 {[%clk 0:01:57]}  Ra8 {[%clk 0:02:24]} 17. Kg1 {[%clk 0:01:56]}  Na5 {[%clk 0:02:24]} 18. Bf4 {[%clk 0:01:53]}  Qd7 {[%clk 0:02:23]} 19. Ne3 {[%clk 0:01:47]}  Qb5 {[%clk 0:02:20]} 20. Qc2 {[%clk 0:01:44]}  Rc8 {[%clk 0:02:17]} 21. dxc5 {[%clk 0:01:36]}  bxc5 {[%clk 0:02:14]} 22. Nd2 {[%clk 0:01:32]}  c4 {[%clk 0:02:09]} 23. Nf3 {[%clk 0:01:29]}  Rb8 {[%clk 0:02:09]} 24. Rb1 {[%clk 0:01:28]}  Na6 {[%clk 0:02:02]} 25. Nd4 {[%clk 0:01:27]}  Qd7 {[%clk 0:02:02]} 26. Nxd5 {[%clk 0:01:11]}  exd5 {[%clk 0:01:38]} 27. e6 {[%clk 0:01:12]}  fxe6 {[%clk 0:01:33]} 28. Bxb8 {[%clk 0:01:12]}  Nxb8 {[%clk 0:01:31]} 29. Nxe6 {[%clk 0:01:12]}  Qxe6 {[%clk 0:01:22]} 30. Re3 {[%clk 0:01:11]}  Qxe3 {[%clk 0:01:22]} 31. fxe3 {[%clk 0:01:10]}  Nd7 {[%clk 0:01:16]} 32. Qg6+ {[%clk 0:01:08]}  Kd8 {[%clk 0:01:15]} 33. Qa6 {[%clk 0:00:57]}  Nb3 {[%clk 0:01:14]} 34. Qa8+ {[%clk 0:00:56]}  Kc7 {[%clk 0:01:14]} 35. Rf1 {[%clk 0:00:56]}  Nf6 {[%clk 0:01:06]} 36. Rf5 {[%clk 0:00:35]}  Nc5 {[%clk 0:01:03]} 37. Re5 {[%clk 0:00:26]}  Bd6 {[%clk 0:00:25]} 38. Qxh8 {[%clk 0:00:25]}  Bxe5 {[%clk 0:00:26]} 39. Qxg7+ {[%clk 0:00:25]}  Ncd7 {[%clk 0:00:25]} 40. Qxh6 {[%clk 0:00:26]}  Bh2+ {[%clk 0:00:22]} 41. Kf1 {[%clk 0:00:19]}  Kd6 {[%clk 0:00:21]} 42. Qg6 {[%clk 0:00:16]}  Ke7 {[%clk 0:00:19]} 43. h6 {[%clk 0:00:14]}  Be5 {[%clk 0:00:19]} 44. Qg7+ {[%clk 0:00:11]}  Ke6 {[%clk 0:00:15]} 45. h7 {[%clk 0:00:12]}  Nxh7 {[%clk 0:00:13]} 46. Qxh7 {[%clk 0:00:12]}  Nf6 {[%clk 0:00:08]} 47. Qa7 {[%clk 0:00:12]}  Ne4 {[%clk 0:00:08]} 48. Qxa4 {[%clk 0:00:12]}  Bd6 {[%clk 0:00:05]} 49. Qe8+ {[%clk 0:00:12]}  Kf6 {[%clk 0:00:04]} 50. a4 {[%clk 0:00:13]}  Nd2+ {[%clk 0:00:03]} 51. Ke2 {[%clk 0:00:13]}  Nb3 {[%clk 0:00:04]} 52. a5 {[%clk 0:00:12]}  Nc5 {[%clk 0:00:02]} 53. Qc6 {[%clk 0:00:10]}  Ke5 {[%clk 0:00:02]} 54. a6 {[%clk 0:00:10]} 1-0


[Site "https://www.chess.com"]

[Event "Titled Tuesday Blitz August 23 Late 2022"]
[White "Maksimovic, Bojan"]
[Black "Pinheiro, Iung Alicio de O."]
[WhiteFideId "14408120"]
[BlackFideId "2104350"]
[WhiteElo "2447"]
[BlackElo "2283"]
[Result "0-1"]
[Round "02"]
[TimeControl "180+1"]
[Date "2022.08.23"]
[WhiteClock "0:00:06"]
[BlackClock "0:00:42"]

1. e4 {[%clk 0:03:00]}  c5 {[%clk 0:02:59]} 2. Nf3 {[%clk 0:03:01]}  Nc6 {[%clk 0:02:59]} 3. d4 {[%clk 0:03:01]}  cxd4 {[%clk 0:03:00]} 4. Nxd4 {[%clk 0:03:02]}  e5 {[%clk 0:03:00]} 5. Nb5 {[%clk 0:03:01]}  d6 {[%clk 0:03:00]} 6. N1c3 {[%clk 0:03:00]}  a6 {[%clk 0:03:00]} 7. Na3 {[%clk 0:03:00]}  b5 {[%clk 0:03:01]} 8. Nd5 {[%clk 0:03:00]}  Nge7 {[%clk 0:03:01]} 9. c3 {[%clk 0:02:57]}  Nxd5 {[%clk 0:02:59]} 10. exd5 {[%clk 0:02:57]}  Ne7 {[%clk 0:02:58]} 11. Nc2 {[%clk 0:02:57]}  Bd7 {[%clk 0:02:53]} 12. Be2 {[%clk 0:02:49]}  g6 {[%clk 0:02:41]} 13. O-O {[%clk 0:02:49]}  Bg7 {[%clk 0:02:41]} 14. Kh1 {[%clk 0:02:18]}  O-O {[%clk 0:02:40]} 15. f4 {[%clk 0:02:18]}  Nf5 {[%clk 0:02:20]} 16. Nb4 {[%clk 0:01:55]}  Qh4 {[%clk 0:02:06]} 17. Qe1 {[%clk 0:01:47]}  Qd8 {[%clk 0:01:23]} 18. Nc6 {[%clk 0:01:40]}  Qc7 {[%clk 0:01:22]} 19. fxe5 {[%clk 0:00:45]}  dxe5 {[%clk 0:01:17]} 20. Bg4 {[%clk 0:00:43]}  Rae8 {[%clk 0:01:13]} 21. Bg5 {[%clk 0:00:32]}  Qd6 {[%clk 0:01:06]} 22. Rd1 {[%clk 0:00:29]}  f6 {[%clk 0:01:02]} 23. Bc1 {[%clk 0:00:27]}  Kh8 {[%clk 0:00:56]} 24. Qe4 {[%clk 0:00:26]}  Qc7 {[%clk 0:00:53]} 25. Bxf5 {[%clk 0:00:23]}  Bxf5 {[%clk 0:00:50]} 26. Rxf5 {[%clk 0:00:24]}  gxf5 {[%clk 0:00:50]} 27. Qxf5 {[%clk 0:00:25]}  Qc8 {[%clk 0:00:47]} 28. Qxc8 {[%clk 0:00:18]}  Rxc8 {[%clk 0:00:47]} 29. Ne7 {[%clk 0:00:19]}  Rcd8 {[%clk 0:00:42]} 30. Nf5 {[%clk 0:00:19]}  Rf7 {[%clk 0:00:41]} 31. Be3 {[%clk 0:00:13]}  Rfd7 {[%clk 0:00:42]} 32. d6 {[%clk 0:00:14]}  Bf8 {[%clk 0:00:40]} 33. Bc5 {[%clk 0:00:14]}  Rc8 {[%clk 0:00:40]} 34. Ba3 {[%clk 0:00:12]}  Kg8 {[%clk 0:00:40]} 35. g4 {[%clk 0:00:12]}  Kf7 {[%clk 0:00:40]} 36. Kg2 {[%clk 0:00:12]}  Ke6 {[%clk 0:00:40]} 37. Kf3 {[%clk 0:00:12]}  Rc4 {[%clk 0:00:41]} 38. h3 {[%clk 0:00:12]}  a5 {[%clk 0:00:41]} 39. Ne3 {[%clk 0:00:09]}  Rf4+ {[%clk 0:00:39]} 40. Kg3 {[%clk 0:00:04]}  b4 {[%clk 0:00:40]} 41. cxb4 {[%clk 0:00:05]}  axb4 {[%clk 0:00:40]} 42. Nd5 {[%clk 0:00:06]}  bxa3 {[%clk 0:00:40]} 43. Nxf4+ {[%clk 0:00:06]}  exf4+ {[%clk 0:00:41]} 44. Kxf4 {[%clk 0:00:07]}  Bxd6+ {[%clk 0:00:41]} 45. Ke4 {[%clk 0:00:06]}  axb2 {[%clk 0:00:42]} 46. Rb1 {[%clk 0:00:07]}  Be5 {[%clk 0:00:42]} 47. a4 {[%clk 0:00:04]}  Rd4+ {[%clk 0:00:41]} 48. Ke3 {[%clk 0:00:04]}  Rxa4 {[%clk 0:00:42]} 49. Kd3 {[%clk 0:00:05]}  Ra1 {[%clk 0:00:42]} 50. Kc2 {[%clk 0:00:06]}  Rxb1 {[%clk 0:00:42]} 0-1


[Site "https://www.chess.com"]

[Event "Titled Tuesday Blitz August 23 Late 2022"]
[White "Mitrabha, Guha"]
[Black "Ladopoulos, Dimitrios"]
[WhiteFideId "5057000"]
[BlackFideId "4239580"]
[WhiteElo "2499"]
[BlackElo "2195"]
[Result "0-1"]
[Round "02"]
[TimeControl "180+1"]
[Date "2022.08.23"]
[WhiteClock "0:00:05"]
[BlackClock "0:00:26"]

1. c4 {[%clk 0:03:00]}  e6 {[%clk 0:02:59]} 2. Nc3 {[%clk 0:03:00]}  Nf6 {[%clk 0:02:50]} 3. e4 {[%clk 0:02:59]}  Nc6 {[%clk 0:02:38]} 4. d4 {[%clk 0:02:56]}  e5 {[%clk 0:02:37]} 5. d5 {[%clk 0:01:55]}  Ne7 {[%clk 0:02:22]} 6. Be3 {[%clk 0:01:54]}  Ng6 {[%clk 0:02:21]} 7. h4 {[%clk 0:01:48]}  Bb4 {[%clk 0:02:17]} 8. h5 {[%clk 0:01:42]}  Ne7 {[%clk 0:01:53]} 9. f3 {[%clk 0:01:36]}  Bxc3+ {[%clk 0:01:52]} 10. bxc3 {[%clk 0:01:36]}  h6 {[%clk 0:01:52]} 11. c5 {[%clk 0:01:31]}  d6 {[%clk 0:01:50]} 12. g4 {[%clk 0:01:30]}  b6 {[%clk 0:01:50]} 13. c6 {[%clk 0:01:29]}  a5 {[%clk 0:01:44]} 14. Ne2 {[%clk 0:01:26]}  Ba6 {[%clk 0:01:44]} 15. Ng3 {[%clk 0:01:23]}  Bxf1 {[%clk 0:01:43]} 16. Kxf1 {[%clk 0:01:24]}  Qc8 {[%clk 0:01:44]} 17. Qd3 {[%clk 0:01:18]}  Qa6 {[%clk 0:01:32]} 18. c4 {[%clk 0:01:16]}  Nh7 {[%clk 0:01:17]} 19. Kg2 {[%clk 0:01:12]}  Nf6 {[%clk 0:01:12]} 20. Rab1 {[%clk 0:01:12]}  Qc8 {[%clk 0:01:10]} 21. Rb5 {[%clk 0:01:11]}  Kf8 {[%clk 0:01:08]} 22. Qd2 {[%clk 0:01:10]}  Neg8 {[%clk 0:01:05]} 23. Nf5 {[%clk 0:01:02]}  Ne7 {[%clk 0:01:05]} 24. Nxh6 {[%clk 0:01:02]}  Nxe4 {[%clk 0:00:49]} 25. fxe4 {[%clk 0:00:56]}  gxh6 {[%clk 0:00:48]} 26. Bxh6+ {[%clk 0:00:52]}  Ke8 {[%clk 0:00:47]} 27. Kf3 {[%clk 0:00:51]}  Rg8 {[%clk 0:00:45]} 28. Bg5 {[%clk 0:00:48]}  f6 {[%clk 0:00:44]} 29. Rbb1 {[%clk 0:00:19]}  Rxg5 {[%clk 0:00:41]} 30. Rbg1 {[%clk 0:00:19]}  Kf7 {[%clk 0:00:41]} 31. h6 {[%clk 0:00:17]}  Kg8 {[%clk 0:00:35]} 32. h7+ {[%clk 0:00:16]}  Kh8 {[%clk 0:00:35]} 33. Rh6 {[%clk 0:00:17]}  Qf8 {[%clk 0:00:34]} 34. Rgh1 {[%clk 0:00:17]}  Qg7 {[%clk 0:00:34]} 35. R1h4 {[%clk 0:00:15]}  Rf8 {[%clk 0:00:33]} 36. Qe3 {[%clk 0:00:09]}  f5 {[%clk 0:00:28]} 37. exf5 {[%clk 0:00:05]}  Nxf5 {[%clk 0:00:28]} 38. gxf5 {[%clk 0:00:02]}  Rg3+ {[%clk 0:00:28]} 39. Ke2 {[%clk 0:00:03]}  Rxe3+ {[%clk 0:00:29]} 40. Kxe3 {[%clk 0:00:04]}  Qg3+ {[%clk 0:00:29]} 41. Kd2 {[%clk 0:00:04]}  Rxf5 {[%clk 0:00:28]} 42. Rh2 {[%clk 0:00:04]}  Rf2+ {[%clk 0:00:27]} 43. Rxf2 {[%clk 0:00:04]}  Qxf2+ {[%clk 0:00:28]} 44. Kd1 {[%clk 0:00:04]}  Qf1+ {[%clk 0:00:27]} 45. Kc2 {[%clk 0:00:05]}  Qxc4+ {[%clk 0:00:27]} 46. Kb2 {[%clk 0:00:05]}  Qe2+ {[%clk 0:00:26]} 0-1


[Site "https://www.chess.com"]

[Event "Titled Tuesday Blitz August 23 Late 2022"]
[White "Nasuta, Grzegorz"]
[Black "Martinez Alcantara, Jose Eduardo"]
[WhiteFideId "1141686"]
[BlackFideId "3805662"]
[WhiteElo "2354"]
[BlackElo "2703"]
[Result "1-0"]
[Round "02"]
[TimeControl "180+1"]
[Date "2022.08.23"]
[WhiteClock "0:01:02"]
[BlackClock "0:01:21"]

1. e4 {[%clk 0:03:00]}  c5 {[%clk 0:02:58]} 2. Nf3 {[%clk 0:03:00]}  d6 {[%clk 0:02:59]} 3. Bb5+ {[%clk 0:03:00]}  Nd7 {[%clk 0:02:59]} 4. a4 {[%clk 0:03:00]}  a6 {[%clk 0:02:59]} 5. Be2 {[%clk 0:02:59]}  Ngf6 {[%clk 0:02:55]} 6. Nc3 {[%clk 0:02:58]}  e6 {[%clk 0:02:51]} 7. d4 {[%clk 0:02:57]}  cxd4 {[%clk 0:02:50]} 8. Qxd4 {[%clk 0:02:57]}  b6 {[%clk 0:02:47]} 9. O-O {[%clk 0:02:57]}  Bb7 {[%clk 0:02:47]} 10. Nd2 {[%clk 0:02:56]}  Qc7 {[%clk 0:02:33]} 11. Rd1 {[%clk 0:02:56]}  Rd8 {[%clk 0:02:18]} 12. Nc4 {[%clk 0:02:30]}  d5 {[%clk 0:01:49]} 13. exd5 {[%clk 0:02:23]}  Nxd5 {[%clk 0:01:38]} 14. Nxd5 {[%clk 0:02:22]}  Bxd5 {[%clk 0:01:39]} 15. Bf4 {[%clk 0:02:22]}  Qc5 {[%clk 0:01:39]} 16. Qxc5 {[%clk 0:02:08]}  Bxc5 {[%clk 0:01:40]} 17. Nd6+ {[%clk 0:02:07]}  Bxd6 {[%clk 0:01:41]} 18. Bxd6 {[%clk 0:02:07]}  Bb7 {[%clk 0:01:41]} 19. f3 {[%clk 0:01:52]}  Rc8 {[%clk 0:01:41]} 20. Rd2 {[%clk 0:01:44]}  f6 {[%clk 0:01:42]} 21. Rad1 {[%clk 0:01:27]}  Kf7 {[%clk 0:01:37]} 22. Bg3 {[%clk 0:01:27]}  Nb8 {[%clk 0:01:34]} 23. Rd7+ {[%clk 0:01:21]}  Nxd7 {[%clk 0:01:34]} 24. Rxd7+ {[%clk 0:01:22]}  Kg8 {[%clk 0:01:21]} 25. Rxb7 {[%clk 0:01:22]}  Rxc2 {[%clk 0:01:21]} 26. Bxa6 {[%clk 0:01:03]}  h5 {[%clk 0:01:20]} 27. Rb8+ {[%clk 0:01:02]}  Kh7 {[%clk 0:01:21]} 28. Bd3+ {[%clk 0:01:02]} 1-0


[Site "https://www.chess.com"]

[Event "Titled Tuesday Blitz August 23 Late 2022"]
[White "Stearman, Josiah"]
[Black "Chigaev, Maksim"]
[WhiteFideId "2062496"]
[BlackFideId "4108116"]
[WhiteElo "2402"]
[BlackElo "2487"]
[Result "0-1"]
[Round "02"]
[TimeControl "180+1"]
[Date "2022.08.23"]
[WhiteClock "0:00:37"]
[BlackClock "0:00:53"]

1. e4 {[%clk 0:03:00]}  c5 {[%clk 0:02:57]} 2. Nc3 {[%clk 0:03:00]}  d6 {[%clk 0:02:57]} 3. g3 {[%clk 0:03:01]}  Nc6 {[%clk 0:02:57]} 4. Bg2 {[%clk 0:03:02]}  g6 {[%clk 0:02:58]} 5. d3 {[%clk 0:03:02]}  Bg7 {[%clk 0:02:58]} 6. Be3 {[%clk 0:03:03]}  Nf6 {[%clk 0:02:58]} 7. h3 {[%clk 0:03:03]}  O-O {[%clk 0:02:58]} 8. f4 {[%clk 0:03:04]}  Rb8 {[%clk 0:02:58]} 9. Nge2 {[%clk 0:03:05]}  Nd7 {[%clk 0:02:58]} 10. O-O {[%clk 0:03:04]}  Nd4 {[%clk 0:02:58]} 11. Qd2 {[%clk 0:03:05]}  b5 {[%clk 0:02:58]} 12. f5 {[%clk 0:03:05]}  b4 {[%clk 0:02:58]} 13. Nd1 {[%clk 0:03:05]}  a5 {[%clk 0:02:55]} 14. Nxd4 {[%clk 0:03:05]}  cxd4 {[%clk 0:02:55]} 15. Bh6 {[%clk 0:03:06]}  Ne5 {[%clk 0:02:53]} 16. g4 {[%clk 0:03:04]}  f6 {[%clk 0:02:53]} 17. Bxg7 {[%clk 0:02:55]}  Kxg7 {[%clk 0:02:54]} 18. fxg6 {[%clk 0:02:56]}  hxg6 {[%clk 0:02:54]} 19. Nf2 {[%clk 0:02:56]}  Bd7 {[%clk 0:02:34]} 20. c4 {[%clk 0:02:51]}  bxc3 {[%clk 0:02:26]} 21. bxc3 {[%clk 0:02:52]}  Qb6 {[%clk 0:02:26]} 22. Rac1 {[%clk 0:02:38]}  Rfc8 {[%clk 0:02:19]} 23. c4 {[%clk 0:02:32]}  Qb4 {[%clk 0:02:10]} 24. Qe2 {[%clk 0:02:26]}  Ba4 {[%clk 0:02:10]} 25. g5 {[%clk 0:02:05]}  Qb2 {[%clk 0:02:10]} 26. gxf6+ {[%clk 0:02:05]}  exf6 {[%clk 0:02:10]} 27. Qe1 {[%clk 0:02:06]}  Qb4 {[%clk 0:02:00]} 28. Qe2 {[%clk 0:02:06]}  Qa3 {[%clk 0:02:00]} 29. Ng4 {[%clk 0:01:54]}  Rb2 {[%clk 0:01:46]} 30. Qe1 {[%clk 0:01:55]}  Nxg4 {[%clk 0:01:44]} 31. hxg4 {[%clk 0:01:54]}  Qxd3 {[%clk 0:01:45]} 32. Rf3 {[%clk 0:01:24]}  Qd2 {[%clk 0:01:41]} 33. Qf1 {[%clk 0:01:24]}  Qg5 {[%clk 0:01:32]} 34. Rb1 {[%clk 0:01:16]}  Rcb8 {[%clk 0:01:29]} 35. Rxb2 {[%clk 0:01:14]}  Rxb2 {[%clk 0:01:30]} 36. c5 {[%clk 0:01:15]}  Bb5 {[%clk 0:01:13]} 37. Qe1 {[%clk 0:01:05]}  Qxc5 {[%clk 0:01:06]} 38. Qh4 {[%clk 0:00:39]}  Rb1+ {[%clk 0:01:00]} 39. Kh2 {[%clk 0:00:38]}  Qe5+ {[%clk 0:01:00]} 40. Kh3 {[%clk 0:00:37]}  Bd7 {[%clk 0:00:53]} 0-1


[Site "https://www.chess.com"]